{"text_format":"1","workbook":"xlsx","n_sheets":1,"sheets":["Ciclos"],"not_rendered":{"charts":0,"images":0,"macros":1,"external_links":0,"defined_names":0,"comments":0,"pivot_tables":0},"unopened":[],"bounds":{"document_bytes":16777216,"sheet_cells":100000,"rows_first":2000,"rows_last":500,"rows_between":2000,"halvings":0,"cell_chars":16384,"cell_head_chars":4096},"cells_cut":0,"cells_raw":0,"read":"whole","date_system":"1900"}

{"sheet":"Ciclos","index":0,"n_rows":38,"n_cols":23,"rows_kept":38,"cut":false,"hidden":false,"merged":[]}
[]
[null,null,"Descomposición en ciclos",null,null,null,null,null,null,null,null,null,null,"No debes escribir fuera del rango B12:U12",null,null,null,null,null,null,null,"Generación aleatoria"]
[null,null,null,null,null,null,null,null,null,null,null,null,null,null,null,null,null,null,null,null,null,"Total elementos (no más de 20)"]
[null,null,"A. Roldán 2013",null,null,null,null,null,null,null,null,null,null,null,null,null,null,null,null,null,null,20]
[]
[null,null,null,null,"Orden principal"]
[]
[null,1,2,3,4,5,6,7,8,9,10,11,12,13,14,15,16,17,18,19,20]
[]
[null,null,null,null,"Permutación G",null,null,null,null,null,null,null,null,null,null,null,null,null,null,null,null,null,"Orden de la permutación"]
[]
[{"$f":"COUNT(B12:U12)","v":17},4,7,3,2,5,17,15,10,9,1,16,14,6,11,8,13,12," "," "," ",null,7]
[]
[null,null,null,null,"Ciclos"]
[null,null,null,null,null,null,null,null,null,null,null,null,null,null,null,null,null,null,null,null,null,null,"Instrucciones"]
[null,1,1,2,1,3,4,1,1,5,1,4,4,4,4,1,4,4,0,0,0]
["Orden",null,null,null,null,null,null,null,null,null,null,null,null,null,null,null,null,null,null,null,null,null,"Escribe tu permutación en el rango B12:U12"]
[{"$f":"COUNT(B18:U18)","v":7},4,2,7,15,8,10,1,null,null,null,null,null,null,null,null,null,null,null,null,null,null,"o bien acude a la generación aleatoria"]
[{"$f":"COUNT(B19:U19)","v":1},3,null,null,null,null,null,null,null,null,null,null,null,null,null,null,null,null,null,null,null,null,"Fija el total de elementos"]
[1,5,null,null,null,null,null,null,null,null,null,null,null,null,null,null,null,null,null,null,null,null,"y pulsa el botón \"Aleatorio\""]
[7,17,12,14,11,16,13,6]
[1,9,null,null,null,null,null,null,null,null,null,null,null,null,null,null,null,null,null,null,null,null,"Pulsa después el botón \"Ciclos\""]
[0,null,null,null,null,null,null,null,null,null,null,null,null,null,null,null,null,null,null,null,null,null,"y obtendrás la descomposición en ciclos"]
[0,null,null,null,null,null,null,null,null,null,null,null,null,null,null,null,null,null,null,null,null,null,"y el orden de la permutación."]
[0]
[0]
[0]
[0]
[0]
[0]
[0]
[0]
[0]
[0]
[0]
[{"$f":"COUNT(B36:U36)","v":0}]
[0]
[0]